fUST/lending_fUST_20250603
["ID","MTS","AMOUNT","RATE_DAILY","PERIOD"]
[363823058,1748887842795,-364.4406513,0.00022959,2]
[363823060,1748887842805,-364.4406513,0.00022959,2]
[363823062,1748887842815,-215.0738,0.00022976,2]
[363823064,1748887842824,-2200.0,0.00022977,2]
[363823066,1748887842834,-170.69,0.00022979,9]
[363823068,1748887842846,-1000.0,0.00022999,12]
[363823070,1748887842856,-200.0,0.00023,2]
[363823072,1748887842865,-500.0,0.00023013,2]
[363823074,1748887842875,-172.0,0.00023014,7]
[363823076,1748887842885,-347.0,0.00023014,7]
[363823078,1748887842896,-150.0,0.00023019,2]
[363823080,1748887842905,-150.0,0.00023022,2]
[363823082,1748887842914,-176.545,0.00023022,2]
[363823083,1748887842925,-962.0,0.00023022,2]
[363823085,1748887842934,-2226.0,0.00023022,2]
[363823086,1748887842944,-708.0,0.00023022,2]
[363823087,1748887842954,-1400.0,0.00023054,2]
[363823089,1748887842963,-356.4980681,0.00023096,2]
[363823091,1748887842973,-153.0,0.00023096,2]
[363823093,1748887842984,-153.0,0.00023096,2]
[363823094,1748887842993,-176.0744501,0.00023096,2]
[363823095,1748887843002,-158.5152029,0.00023096,2]
[363823096,1748887843012,-163.9382195,0.00023096,2]
[363823097,1748887843022,-572.502888,0.00023096,2]
[363823098,1748887843031,-270.8437063,0.00023096,2]
[363823099,1748887843041,-572.502888,0.00023096,2]
[363823100,1748887843051,-158.5152029,0.00023096,2]
[363823101,1748887843062,-572.502888,0.00023096,2]
[363823102,1748887843071,-158.5152029,0.00023096,2]
[363823103,1748887843081,-153.0,0.00023096,2]
[363823104,1748887843091,-153.0,0.00023096,2]
[363823105,1748887843100,-176.5287595,0.00023096,2]
[363823106,1748887843109,-151.0,0.000231,7]
[363823107,1748887843119,-1786.35,0.000231,7]
[363823108,1748887843129,-1411.42197363,0.00023176,8]
[363823109,1748887843138,-594.9417706,0.00023177,2]
[363823110,1748887843147,-2500.0,0.000232,4]
[363823111,1748887843157,-638.0,0.000232,2]
[363823112,1748887843168,-5000.0,0.00023251,2]
[363823113,1748887843178,-530.80791251,0.0002326,2]
[363823114,1748887843187,-500.0,0.00023287,7]
[363823115,1748887843197,-157.326329,0.0002329,10]
[363823116,1748887843207,-16255.76,0.0002329,10]
[363823117,1748887843216,-27887.32,0.0002329,10]
[363823118,1748887843226,-11931.72044505,0.000233,7]
[363823119,1748887843237,-60439.55031554,0.000233,3]
[363823120,1748887843247,-151.0,0.000233,7]
[363823121,1748887843256,-151.0,0.000233,7]
[363823122,1748887843268,-151.0,0.000233,7]
[363823123,1748887843278,-2000.0,0.000233,2]
[363823124,1748887843287,-151.632202,0.000233,7]
[363823125,1748887843297,-151.632202,0.000233,7]
[363823126,1748887843306,-151.0,0.000233,6]
[363823127,1748887843316,-170.0,0.000233,3]
[363823128,1748887843325,-170.0,0.000233,3]
[363823129,1748887843335,-170.0,0.000233,3]
[363823130,1748887843344,-170.0,0.000233,3]
[363823131,1748887843354,-170.0,0.000233,3]
[363823132,1748887843363,-153.0,0.000233,3]
[363823133,1748887843373,-175.59555078,0.000233,3]
[363823134,1748887843383,-153.0,0.000233,3]
[363823135,1748887843392,-153.0,0.000233,3]
[363823136,1748887843401,-153.0,0.000233,3]
[363823137,1748887843411,-153.0,0.000233,3]
[363823138,1748887843420,-153.0,0.000233,3]
[363823139,1748887843429,-153.0,0.000233,3]
[363823140,1748887843439,-153.0,0.000233,3]
[363823141,1748887843449,-153.0,0.000233,3]
[363823142,1748887843459,-153.0,0.000233,3]
[363823143,1748887843469,-160.0,0.000233,3]
[363823144,1748887843478,-153.0,0.000233,3]
[363823145,1748887843488,-153.0,0.000233,3]
[363823146,1748887843497,-153.0,0.000233,3]
[363823147,1748887843507,-153.0,0.000233,3]
[363823148,1748887843517,-153.0,0.000233,3]
[363823149,1748887843526,-153.0,0.000233,3]
[363823150,1748887843536,-153.0,0.000233,3]
[363823151,1748887843546,-153.0,0.000233,3]
[363823152,1748887843556,-153.0,0.000233,3]
[363823153,1748887843569,-153.0,0.000233,3]
[363823154,1748887843583,-153.0,0.000233,3]
[363823155,1748887843593,-153.0,0.000233,3]
[363823156,1748887843602,-153.0,0.000233,3]
[363823157,1748887843611,-153.0,0.000233,3]
[363823158,1748887843621,-153.0,0.000233,3]
[363823159,1748887843632,-153.0,0.000233,3]
[363823160,1748887843642,-153.0,0.000233,3]
[363823161,1748887843652,-153.0,0.000233,3]
[363823162,1748887843662,-153.0,0.000233,3]
[363823163,1748887843673,-153.0,0.000233,3]
[363823164,1748887843683,-153.0,0.000233,3]
[363823165,1748887843693,-153.0,0.000233,3]
[363823166,1748887843702,-153.0,0.000233,3]
[363823167,1748887843712,-153.0,0.000233,3]
[363823168,1748887843721,-153.0,0.000233,3]
[363823169,1748887843733,-153.0,0.000233,3]
[363823170,1748887843743,-153.0,0.000233,3]
[363823171,1748887843752,-153.0,0.000233,3]
[363823172,1748887843762,-153.0,0.000233,3]
[363823173,1748887843772,-271.52524449,0.000233,3]
[363823174,1748887843784,-379.977163,0.000233,7]
[363823175,1748887843795,-379.977163,0.000233,7]
[363823176,1748887843804,-48318.36,0.000233,2]
[363823177,1748887843816,-153.0,0.000233,3]
[363823178,1748887843827,-153.0,0.000233,3]
[363823179,1748887843839,-153.0,0.000233,3]
[363823180,1748887843852,-153.0,0.000233,3]
[363823181,1748887843862,-153.0,0.000233,3]
[363823182,1748887843873,-153.0,0.000233,3]
[363823183,1748887843883,-153.0,0.000233,3]
[363823184,1748887843895,-153.0,0.000233,3]
[363823185,1748887843904,-153.0,0.000233,3]
[363823186,1748887843914,-153.0,0.000233,3]
[363823187,1748887843924,-153.0,0.000233,3]
[363823188,1748887843934,-153.0,0.000233,3]
[363823189,1748887843944,-153.0,0.000233,3]
[363823190,1748887843954,-153.0,0.000233,3]
[363823191,1748887843964,-153.0,0.000233,3]
[363823192,1748887843974,-153.0,0.000233,3]
[363823193,1748887843984,-153.0,0.000233,3]
[363823194,1748887843994,-153.0,0.000233,3]
[363823195,1748887844004,-153.0,0.000233,3]
[363823196,1748887844013,-2000.0,0.000233,2]
[363823197,1748887844024,-6153.67,0.000233,2]
[363823198,1748887844034,-1108.630773,0.000233,2]
[363823199,1748887844044,-160.0,0.000233,3]
[363823200,1748887844054,-160.0,0.000233,3]
[363823201,1748887844063,-151.0,0.000233,7]
[363823202,1748887844072,-223.384021,0.000233,7]
[363823203,1748887844082,-151.0,0.000233,7]
[363823204,1748887844092,-187.146161,0.000233,2]
[363823205,1748887844102,-1169.377857,0.000233,2]
[363823206,1748887844112,-1169.377857,0.000233,2]
[363823207,1748887844121,-423.56953423,0.000233,3]
[363823208,1748887844131,-151.0,0.000233,7]
[363823209,1748887844141,-12668.79298183,0.000233,3]
[363823210,1748887844151,-12668.79298183,0.000233,7]
[363823211,1748887844160,-12668.79298183,0.000233,10]
[363823212,1748887844170,-189.835306,0.000233,7]
[363823213,1748887844180,-189.835306,0.000233,7]
[363823214,1748887844189,-185.465959,0.000233,7]
[363823215,1748887844200,-151.449566,0.000233,7]
[363823216,1748887844209,-151.0,0.000233,7]
[363823217,1748887844218,-151.0,0.000233,7]
[363823218,1748887844228,-151.0,0.000233,7]
[363823219,1748887844238,-229.39799938,0.000233,3]
[363823220,1748887844247,-212.83419937,0.000233,3]
[363823221,1748887844257,-212.83419937,0.000233,7]
[363823222,1748887844268,-195.9627,0.000233,2]
[363823223,1748887844277,-151.0,0.000233,7]
[363823224,1748887844288,-842.5625,0.000233,3]
[363823225,1748887844298,-842.5625,0.000233,7]
[363823226,1748887844308,-842.5625,0.000233,10]
[363823227,1748887844318,-151.0,0.000233,7]
[363823228,1748887844328,-565.272478,0.000233,7]
[363823229,1748887844338,-565.272478,0.000233,7]
[363823230,1748887844347,-1312.36,0.00023359,7]
[363823231,1748887844357,-153.0,0.0002337,2]
[363823232,1748887844395,-153.0,0.0002337,2]
[363823233,1748887844406,-153.0,0.0002337,2]
[363823234,1748887844416,-151.0,0.000234,7]
[363823235,1748887844426,-151.0,0.000234,7]
[363823236,1748887844437,-157.326329,0.000234,3]
[363823237,1748887844447,-1411.42197363,0.00023417,9]
[363823238,1748887844456,-1312.36,0.00023459,2]
[363823239,1748887844466,-265.59408,0.00023461,2]
[363823240,1748887844477,-151.0,0.00023465,7]
[363823241,1748887844486,-91652.88168843,0.00023487,2]
[363823242,1748887844496,-151.0,0.00023487,7]
[363823243,1748887844506,-151.0,0.00023487,7]
[363823244,1748887844516,-151.0,0.00023487,7]
[363823245,1748887844526,-151.0,0.00023487,7]
[363823246,1748887844536,-151.0,0.00023487,7]
[363823247,1748887844546,-151.0,0.00023487,7]
[363823248,1748887844557,-242.537804,0.00023487,7]
[363823249,1748887844566,-242.537804,0.00023487,7]
[363823250,1748887844576,-152.702403,0.00023487,7]
[363823251,1748887844586,-151.0,0.00023487,7]
[363823252,1748887844595,-10836.55513191,0.000235,2]
[363823253,1748887844793,-440.0,0.00021917,2]
[363823254,1748887844803,-440.0,0.00022191,2]
[363823255,1748887844813,-316.53,0.00022465,2]
[363823256,1748887844822,-2616.88296603,0.000235,2]
[363823257,1748887844834,-20829.999997,0.000235,2]
[363823258,1748887844883,-327.67538501,0.0001955,2]
[363823259,1748887844894,-405.0,0.00022316,2]
[363823260,1748887844903,-176.5287595,0.00023096,2]
[363823261,1748887844913,-11173.83105087,0.000235,2]
[363823263,1748887844934,-364.4406513,0.00022959,2]
[363823264,1748887844943,-158.5152029,0.00023096,2]
[363823265,1748887844953,-10.84600109,0.000235,2]
[363823312,1748887846028,-1484.56833855,0.00021698,2]
[363823314,1748887846040,-1031.83304071,0.00021698,2]
[363823316,1748887846054,-349.75517299,0.00021698,2]
[363823345,1748887878990,627.339064,0.00013699,2]
[363823365,1748888030614,-225.77311476,0.00016273,2]
[363823380,1748888188474,12355.26,0.000155,2]
[363823394,1748888260878,-342.45150672,0.0001562,2]
[363823395,1748888269909,-212.0045471,0.0001562,2]
[363823400,1748888278747,-312.21939087,0.0001562,2]
[363823401,1748888281717,-157.41593566,0.0001562,2]
[363823402,1748888283271,-274.17565489,0.0001562,2]
[363823404,1748888287348,-195.85382659,0.0001562,2]
[363823405,1748888290855,-193.5442518,0.0001562,2]
[363823406,1748888292979,-192.74847749,0.0001562,2]
[363823407,1748888294926,-154.39425402,0.0001562,2]
[363823408,1748888296393,-233.52,0.0001562,2]
[363823409,1748888297771,-211.22775025,0.0001562,2]
[363823410,1748888299725,-304.58858504,0.0001562,2]
[363823411,1748888301167,-205.25416355,0.0001562,2]
[363823412,1748888304297,-181.86573826,0.0001562,2]
[363823413,1748888306280,-152.0,0.0001562,2]
[363823414,1748888309929,-151.98457739,0.0001562,2]
[363823416,1748888314360,265.59408,0.00015414,2]
[363823417,1748888317890,-172.89261289,0.0001562,2]
[363823418,1748888325668,-239.91861245,0.0001562,2]
[363823420,1748888328295,-261.82249906,0.0001562,2]
[363823421,1748888333287,-306.82480709,0.0001562,2]
[363823422,1748888335396,-224.536575,0.0001562,2]
[363823423,1748888341355,-82.04352108,0.0001562,2]
[363823425,1748888404767,3395.95691101,0.000246,120]
[363823473,1748888512216,13316.8648061,0.00015376,2]
[363823477,1748888532667,166.13171351,0.0001555,2]
[363823479,1748888548949,1000.0,0.00022999,120]
[363823481,1748888582534,5000.0,0.0001555,2]
[363823483,1748888590950,2736.1460841,0.00015482,2]
[363823484,1748888597683,5000.0,0.0001555,2]
[363823485,1748888613348,5000.0,0.0001555,2]
[363823486,1748888628543,5000.0,0.0001555,2]
[363823487,1748888643562,2914.82072672,0.0001555,2]
[363823523,1748888844500,-164.17030852,0.00015692,2]
[363823591,1748888906975,19516.94313618,0.00015,2]
[363823600,1748888911094,200.0,0.00022852,120]
[363823620,1748888918110,1289.26260045,0.00024,120]
[363823625,1748888920027,1000.0,0.0001,2]
[363823638,1748888921766,3177.08164571,0.0002,120]
[363823639,1748888923550,736.88251345,0.00024657,120]
[363823640,1748888923839,217.61044454,0.0001536,120]
[363823649,1748888925836,2130.21959919,0.0001,2]
[363823650,1748888925940,1160.75101048,0.00023,120]
[363823665,1748888940655,500.0,0.000225,120]
[363823667,1748888941442,500.0,0.000225,120]
[363823668,1748888941853,636.538182,0.00013699,2]
[363823669,1748888942293,500.0,0.000225,120]
[363823670,1748888943389,500.0,0.000225,120]
[363823675,1748888944611,500.0,0.000225,120]
[363823677,1748888945382,500.0,0.000225,120]
[363823678,1748888946200,500.0,0.000225,120]
[363823681,1748888946966,500.0,0.000225,120]
[363823682,1748888947760,500.0,0.000225,120]
[363823684,1748888948537,500.0,0.000225,120]
[363823685,1748888949313,500.0,0.000225,120]
[363823686,1748888950125,500.0,0.000225,120]
[363823687,1748888950914,500.0,0.000225,120]
[363823688,1748888951665,500.0,0.000225,120]
[363823691,1748888952431,500.0,0.000225,120]
[363823692,1748888953188,500.0,0.000225,120]
[363823694,1748888953945,500.0,0.000225,120]
[363823696,1748888954817,500.0,0.000225,120]
[363823697,1748888955503,500.0,0.000225,120]
[363823698,1748888956277,500.0,0.000225,120]
[363823700,1748888957055,500.0,0.000225,120]
[363823702,1748888957830,500.0,0.000225,120]
[363823703,1748888958674,500.0,0.000225,120]
[363823705,1748888959445,500.0,0.000225,120]
[363823709,1748888960252,500.0,0.000225,120]
[363823710,1748888961029,500.0,0.000225,120]
[363823718,1748888961806,500.0,0.000225,120]
[363823724,1748888962561,500.0,0.000225,120]
[363823725,1748888963328,500.0,0.000225,120]
[363823726,1748888964104,500.0,0.000225,120]
[363823727,1748888965000,500.0,0.000225,120]
[363823728,1748888965692,155.47,0.000225,120]
[363823730,1748888971291,200.0,0.00023957,120]
[363823747,1748889003155,409.0,0.00024658,120]
[363823748,1748889003189,1500.0,0.00024658,120]
[363823750,1748889003221,852.0,0.00024658,120]
[363823766,1748889031445,500.0,0.000225,120]
[363823793,1748889032105,-176.52001498,0.00015692,2]
[363823794,1748889032116,-1121.83693986,0.00016324,2]
[363823795,1748889032127,-163.83769254,0.00016338,2]
[363823796,1748889032137,-300.0,0.00016341,2]
[363823797,1748889032148,-1200.0,0.00016341,2]
[363823798,1748889032158,-10448.7505658,0.00016342,2]
[363823799,1748889032167,-400.0,0.00016438,2]
[363823800,1748889032178,-430.0,0.00016438,2]
[363823801,1748889032189,-440.0,0.00016438,2]
[363823802,1748889032199,-430.0,0.00016438,2]
[363823803,1748889032210,-440.0,0.00016438,2]
[363823804,1748889032221,-440.0,0.00016438,2]
[363823805,1748889032231,-440.0,0.00016438,2]
[363823806,1748889032241,-440.0,0.00016438,2]
[363823807,1748889032250,-440.0,0.00016438,2]
[363823808,1748889032264,-482.01,0.00016438,2]
[363823809,1748889032275,-430.0,0.00016438,2]
[363823810,1748889032288,-430.0,0.00016438,2]
[363823811,1748889032298,-440.0,0.00016438,2]
[363823812,1748889032308,-409.29145975,0.00016438,2]
[363823813,1748889032341,500.0,0.000225,120]
[363823814,1748889033049,500.0,0.000225,120]
[363823815,1748889033828,500.0,0.000225,120]
[363823816,1748889034604,500.0,0.000225,120]
[363823817,1748889035384,500.0,0.000225,120]
[363823818,1748889036156,500.0,0.000225,120]
[363823819,1748889036925,500.0,0.000225,120]
[363823842,1748889037695,500.0,0.000225,120]
[363823877,1748889038230,-20.70854025,0.00016438,2]
[363823879,1748889038240,-456.35314429,0.00016438,2]
[363823881,1748889038249,-430.0,0.00016438,2]
[363823883,1748889038259,-430.0,0.00016438,2]
[363823885,1748889038273,-500.0,0.00016438,2]
[363823887,1748889038287,-440.0,0.00016438,2]
[363823889,1748889038297,-430.0,0.00016438,2]
[363823891,1748889038307,-430.0,0.00016438,2]
[363823893,1748889038317,-440.0,0.00016438,2]
[363823895,1748889038326,-430.0,0.00016438,2]
[363823897,1748889038336,-440.0,0.00016438,2]
[363823899,1748889038345,-430.0,0.00016438,2]
[363823901,1748889038354,-440.0,0.00016438,2]
[363823903,1748889038367,-430.0,0.00016438,2]
[363823905,1748889038376,-423.77912875,0.00016438,2]
[363823907,1748889038385,-440.0,0.00016438,2]
[363823909,1748889038395,-474.20354946,0.00016438,2]
[363823911,1748889038405,-440.0,0.00016438,2]
[363823912,1748889038414,-440.0,0.00016438,2]
[363823914,1748889038423,-440.0,0.00016438,2]
[363823916,1748889038432,-353.55849407,0.00016438,2]
[363823918,1748889038442,-459.45,0.00016438,2]
[363823920,1748889038451,-440.0,0.00016438,2]
[363823922,1748889038460,-387.47962161,0.00016438,2]
[363823924,1748889038470,-430.0,0.00016438,2]
[363823926,1748889038479,-375.92,0.00016438,2]
[363823928,1748889038489,-440.0,0.00016438,2]
[363823930,1748889038498,-440.0,0.00016438,2]
[363823932,1748889038507,-15140.60476186,0.00016438,2]
[363823934,1748889038520,-270.41000086,0.0001671,2]
[363823936,1748889038530,-430.0,0.0001671,2]
[363823938,1748889038539,-440.0,0.0001671,2]
[363823940,1748889038549,-440.0,0.0001671,2]
[363823942,1748889038559,-430.0,0.0001671,2]
[363823944,1748889038569,-440.0,0.00016712,2]
[363823946,1748889038581,-440.0,0.00016712,2]
[363823948,1748889038591,-506.81,0.00016712,2]
[363823950,1748889038600,-420.0,0.00016712,2]
[363823952,1748889038609,-440.0,0.00016712,2]
[363823954,1748889038618,-440.0,0.00016712,2]
[363823956,1748889038627,-420.0,0.00016712,2]
[363823958,1748889038637,-440.0,0.00016712,2]
[363823960,1748889038646,-440.0,0.00016712,2]
[363823962,1748889038656,-440.0,0.00016712,2]
[363823964,1748889038665,-440.0,0.00016712,2]
[363823966,1748889038674,-440.0,0.00016712,2]
[363823968,1748889038684,-459.45,0.00016712,2]
[363823970,1748889038693,-440.0,0.00016712,2]
[363823972,1748889038702,-440.0,0.00016712,2]
[363823974,1748889038712,-440.0,0.00016712,2]
[363823976,1748889038721,-440.0,0.00016984,2]
[363823978,1748889038731,-420.0,0.00016984,2]
[363823980,1748889038741,-440.0,0.00016986,2]
[363823982,1748889038750,-440.0,0.00016986,2]
[363823984,1748889038760,-440.0,0.00016986,2]
[363823986,1748889038772,-507.8,0.00016986,2]
[363823988,1748889038782,-440.0,0.00016986,2]
[363823990,1748889038791,-440.0,0.00016986,2]
[363823992,1748889038801,-440.0,0.00016986,2]
[363823994,1748889038810,-440.0,0.00016986,2]
[363823996,1748889038820,-440.0,0.00016986,2]
[363823998,1748889038830,-459.45,0.00016986,2]
[363824000,1748889038839,-440.0,0.00016986,2]
[363824002,1748889038849,-440.0,0.00016986,2]
[363824004,1748889038859,-440.0,0.00016986,2]
[363824006,1748889038869,-440.0,0.00017258,2]
[363824008,1748889038878,-440.0,0.0001726,2]
[363824010,1748889038887,-440.0,0.0001726,2]
[363824012,1748889038897,-420.99,0.0001726,2]
[363824014,1748889038907,-440.0,0.0001726,2]
[363824016,1748889038916,-440.0,0.0001726,2]
[363824018,1748889038925,-440.0,0.0001726,2]
[363824020,1748889038935,-440.0,0.0001726,2]
[363824022,1748889038944,-440.0,0.0001726,2]
[363824024,1748889038954,-459.45,0.0001726,2]
[363824026,1748889038963,-440.0,0.0001726,2]
[363824028,1748889038973,-440.0,0.0001726,2]
[363824030,1748889038983,-440.0,0.0001726,2]
[363824032,1748889038993,-500.0,0.00017367,2]
[363824034,1748889039003,-163.8376925,0.00017406,2]
[363824036,1748889039013,-440.0,0.00017532,2]
[363824038,1748889039023,-440.0,0.00017534,2]
[363824040,1748889039032,-440.0,0.00017534,2]
[363824042,1748889039042,-440.0,0.00017534,2]
[363824044,1748889039052,-440.0,0.00017534,2]
[363824045,1748889039062,-440.0,0.00017534,2]
[363824048,1748889039072,-440.0,0.00017534,2]
[363824050,1748889039081,-440.0,0.00017534,2]
[363824052,1748889039091,-459.45,0.00017534,2]
[363824053,1748889039100,-440.0,0.00017534,2]
[363824055,1748889039110,-582.67,0.00017534,2]
[363824057,1748889039119,-440.0,0.00017534,2]
[363824059,1748889039129,-440.0,0.00017806,2]
[363824061,1748889039138,-440.0,0.00017808,2]
[363824063,1748889039147,-440.0,0.00017808,2]
[363824064,1748889039157,-440.0,0.00017808,2]
[363824066,1748889039166,-440.0,0.00017808,2]
[363824068,1748889039176,-440.0,0.00017808,2]
[363824069,1748889039185,-440.0,0.00017808,2]
[363824070,1748889039195,-440.0,0.00017808,2]
[363824071,1748889039205,-459.45,0.00017808,2]
[363824072,1748889039214,-440.0,0.00017808,2]
[363824073,1748889039223,-440.0,0.00017808,2]
[363824075,1748889039233,-420.0,0.00017859,2]
[363824076,1748889039242,-461.49677403,0.000179,2]
[363824077,1748889039252,-633.51723044,0.00017915,2]
[363824078,1748889039264,-163.2206531,0.00018,2]
[363824079,1748889039274,-440.0,0.0001808,2]
[363824080,1748889039288,-440.0,0.00018082,2]
[363824081,1748889039298,-440.0,0.00018082,2]
[363824082,1748889039308,-440.0,0.00018082,2]
[363824083,1748889039318,-440.0,0.00018082,2]
[363824084,1748889039329,-440.0,0.00018082,2]
[363824085,1748889039339,-440.0,0.00018082,2]
[363824086,1748889039349,-440.0,0.00018082,2]
[363824087,1748889039361,-459.45,0.00018082,2]
[363824088,1748889039370,-440.0,0.00018082,2]
[363824089,1748889039381,-440.0,0.00018082,2]
[363824090,1748889039391,-198.0,0.00018106,2]
[363824091,1748889039401,-501.31956982,0.00018106,2]
[363824092,1748889039411,-604.17785748,0.00018106,2]
[363824093,1748889039420,-250.0,0.00018106,2]
[363824094,1748889039430,-461.49677376,0.00018107,2]
[363824095,1748889039440,-820.77,0.00018191,2]
[363824096,1748889039450,-461.49677376,0.00018314,2]
[363824098,1748889039460,-440.0,0.00018354,2]
[363824099,1748889039470,-440.0,0.00018356,2]
[363824100,1748889039479,-440.0,0.00018356,2]
[363824101,1748889039490,-440.0,0.00018356,2]
[363824102,1748889039499,-440.0,0.00018356,2]
[363824103,1748889039509,-440.0,0.00018356,2]
[363824104,1748889039520,-440.0,0.00018356,2]
[363824105,1748889039529,-440.0,0.00018356,2]
[363824106,1748889039539,-459.45,0.00018356,2]
[363824107,1748889039550,-440.0,0.00018356,2]
[363824108,1748889039560,-440.0,0.00018356,2]
[363824109,1748889039570,-163.8376925,0.00018475,2]
[363824110,1748889039579,-461.49677376,0.00018521,2]
[363824111,1748889039589,-440.0,0.00018628,2]
[363824112,1748889039598,-557.77,0.0001863,2]
[363824113,1748889039608,-440.0,0.0001863,2]
[363824114,1748889039618,-440.0,0.0001863,2]
[363824115,1748889039629,-440.0,0.0001863,2]
[363824116,1748889039638,-440.0,0.0001863,2]
[363824117,1748889039648,-440.0,0.0001863,2]
[363824118,1748889039657,-440.0,0.0001863,2]
[363824119,1748889039667,-459.45,0.0001863,2]
[363824120,1748889039676,-440.0,0.0001863,2]
[363824121,1748889039686,-440.0,0.0001863,2]
[363824122,1748889039698,-1400.0,0.0001867,2]
[363824123,1748889039709,-461.49677376,0.00018728,2]
[363824124,1748889039721,-160.0,0.00018816,2]
[363824125,1748889039733,-229.39799938,0.00018826,2]
[363824126,1748889039745,-160.0,0.00018826,2]
[363824127,1748889039756,-423.56953423,0.00018826,2]
[363824128,1748889039768,-160.0,0.00018826,2]
[363824129,1748889039778,-212.83419937,0.00018826,2]
[363824130,1748889039787,-160.0,0.00018826,2]
[363824131,1748889039796,-160.0,0.00018826,2]
[363824132,1748889039806,-160.0,0.00018831,2]
[363824133,1748889039814,-842.5625,0.00018831,2]
[363824134,1748889039824,-390.0,0.00018902,2]
[363824135,1748889039834,-440.0,0.00018904,2]
[363824136,1748889039843,-328.42547671,0.00018904,2]
[363824137,1748889039853,-440.0,0.00018904,2]
[363824139,1748889039863,-440.0,0.00018904,2]
[363824140,1748889039872,-234.07,0.00018904,2]
[363824142,1748889039882,-440.0,0.00018904,2]
[363824144,1748889039892,-459.45,0.00018904,2]
[363824146,1748889039902,-440.0,0.00018904,2]
[363824148,1748889039911,-440.0,0.00018904,2]
[363824149,1748889039921,-461.49677376,0.00018934,2]
[363824151,1748889039930,-1641.54,0.00019057,2]
[363824152,1748889039940,-461.49677376,0.00019141,2]
[363824153,1748889039949,-440.0,0.00019178,2]
[363824154,1748889039959,-440.0,0.00019178,2]
[363824155,1748889039969,-440.0,0.00019178,2]
[363824156,1748889039978,-440.0,0.00019178,2]
[363824157,1748889039988,-459.45,0.00019178,2]
[363824158,1748889039998,-440.0,0.00019178,2]
[363824159,1748889040007,-440.0,0.00019178,2]
[363824160,1748889040018,-299.209081,0.00019178,2]
[363824161,1748889040027,-461.49677376,0.00019348,2]
[363824162,1748889040036,-1294.6553076,0.00019356,2]
[363824163,1748889040046,-440.0,0.00019452,2]
[363824164,1748889040055,-262.89600343,0.00019452,2]
[363824165,1748889040065,-472.61164435,0.00019452,2]
[363824166,1748889040075,-578.76147986,0.00019452,2]
[363824167,1748889040084,-459.45,0.00019452,2]
[363824168,1748889040094,-440.0,0.00019452,2]
[363824169,1748889040103,-440.0,0.00019452,2]
[363824170,1748889040113,-341403.39927395,0.000195,2]
[363824171,1748889040123,-587.0,0.0001952,2]
[363824172,1748889040132,-163.8376925,0.00019543,2]